[Event "*** Titled Tuesday Blitz"]
[Site "Chess.com"]
[Date "2020.04.07"]
[Round "7"]
[White "gixfantastix"]
[Black "SimonKnightRivendell"]
[Result "0-1"]
[WhiteElo "2083"]
[BlackElo "1913"]
[TimeControl "180+1"]
[EndTime "14:20:53 PDT"]
[Termination "SimonKnightRivendell won on time"]

1. e3 {[%clk 0:03:00.9]} 1... d5 {[%clk 0:02:55.1]} 2. b3 {[%clk 0:03:00.1]}
2... Nf6 {[%clk 0:02:54.5]} 3. Bb2 {[%clk 0:02:59.9]} 3... Bf5 {[%clk
0:02:54.4]} 4. Nf3 {[%clk 0:02:59]} 4... Nbd7 {[%clk 0:02:53.9]} 5. Be2 {[%clk
0:02:59.5]} 5... e6 {[%clk 0:02:53.3]} 6. O-O {[%clk 0:02:59.5]} 6... Bd6 {[%clk
0:02:53.1]} 7. Nh4 {[%clk 0:02:35.2]} 7... Bg6 {[%clk 0:02:52]} 8. d3 {[%clk
0:02:30.2]} 8... Qe7 {[%clk 0:02:46.8]} 9. a4 {[%clk 0:02:26.2]} 9... Be5 {[%clk
0:02:46.5]} 10. Ba3 {[%clk 0:02:22]} 10... Bd6 {[%clk 0:02:45.5]} 11. Bb2 {[%clk
0:02:21.4]} 11... Be5 {[%clk 0:02:45.5]} 12. Nc3 {[%clk 0:02:18.3]} 12... c6
{[%clk 0:02:31.8]} 13. f4 {[%clk 0:02:06.4]} 13... Bd6 {[%clk 0:02:27.8]} 14. a5
{[%clk 0:02:00.8]} 14... a6 {[%clk 0:02:02]} 15. Na4 {[%clk 0:01:56.5]} 15...
Bc7 {[%clk 0:01:39.7]} 16. Bf3 {[%clk 0:01:52.7]} 16... Bxa5 {[%clk 0:01:22.7]}
17. c4 {[%clk 0:01:52.2]} 17... Bc7 {[%clk 0:01:15.2]} 18. Nc3 {[%clk
0:01:41.7]} 18... O-O {[%clk 0:01:13]} 19. Nxg6 {[%clk 0:01:32.3]} 19... hxg6
{[%clk 0:01:10]} 20. Qe1 {[%clk 0:01:33]} 20... Nc5 {[%clk 0:01:07.3]} 21. Qd1
{[%clk 0:01:29.8]} 21... Ncd7 {[%clk 0:01:00.2]} 22. Qe1 {[%clk 0:01:28.7]}
22... d4 {[%clk 0:00:45.8]} 23. exd4 {[%clk 0:01:24]} 23... Bxf4 {[%clk
0:00:45.7]} 24. Bxc6 {[%clk 0:01:10.9]} 24... Bxh2+ {[%clk 0:00:43.7]} 25. Kxh2
{[%clk 0:01:11.6]} 25... Qd6+ {[%clk 0:00:41.8]} 26. Kg1 {[%clk 0:01:08.8]}
26... Qxc6 {[%clk 0:00:41.7]} 27. Qh4 {[%clk 0:01:04.8]} 27... Rad8 {[%clk
0:00:36.4]} 28. Rf3 {[%clk 0:00:59.8]} 28... Nh5 {[%clk 0:00:35.9]} 29. Ne4
{[%clk 0:00:58.5]} 29... Ndf6 {[%clk 0:00:33.7]} 30. Ng5 {[%clk 0:00:57.4]}
30... Qb6 {[%clk 0:00:27]} 31. Ra3 {[%clk 0:00:25.7]} 31... e5 {[%clk
0:00:24.7]} 32. Kh1 {[%clk 0:00:19.3]} 32... exd4 {[%clk 0:00:22.5]} 33. Nh3
{[%clk 0:00:17.6]} 33... Qe6 {[%clk 0:00:19.1]} 34. Ra1 {[%clk 0:00:16.2]} 34...
Qe2 {[%clk 0:00:18.4]} 35. Ba3 {[%clk 0:00:15.6]} 35... Rfe8 {[%clk 0:00:16.8]}
36. Raf1 {[%clk 0:00:15.3]} 36... Re3 {[%clk 0:00:14.2]} 37. Nf4 {[%clk
0:00:13.5]} 37... Rxf3 {[%clk 0:00:11.6]} 38. Nxe2 {[%clk 0:00:11.9]} 38...
Rxf1+ {[%clk 0:00:11.5]} 39. Kh2 {[%clk 0:00:11.8]} 39... Re8 {[%clk 0:00:11.3]}
40. Ng3 {[%clk 0:00:09.7]} 40... Rd1 {[%clk 0:00:10.9]} 41. Nxh5 {[%clk
0:00:08.6]} 41... Nxh5 {[%clk 0:00:10.2]} 42. Qf2 {[%clk 0:00:04.4]} 42... Ree1
{[%clk 0:00:09.7]} 43. g4 {[%clk 0:00:01.7]} 43... Rh1+ {[%clk 0:00:09.2]} 44.
Kg2 {[%clk 0:00:02.1]} 44... Rdg1+ {[%clk 0:00:08.3]} 45. Qxg1 {[%clk
0:00:02.1]} 45... Rxg1+ {[%clk 0:00:08.4]} 46. Kxg1 {[%clk 0:00:03]} 46... Nf4
{[%clk 0:00:09]} 47. Bc5 {[%clk 0:00:02.2]} 47... Nxd3 {[%clk 0:00:08.6]} 48.
Bxd4 {[%clk 0:00:03.1]} 48... b5 {[%clk 0:00:07.8]} 49. c5 {[%clk 0:00:01.5]}
49... Nb4 {[%clk 0:00:06]} 50. Kf1 {[%clk 0:00:02.4]} 50... Nc6 {[%clk 0:00:06]}
51. Ke2 {[%clk 0:00:03.1]} 51... Nxd4+ {[%clk 0:00:04.1]} 52. Kd3 {[%clk
0:00:04]} 52... Nc6 {[%clk 0:00:04.1]} 53. Ke4 {[%clk 0:00:04.2]} 53... Kf8
{[%clk 0:00:02.1]} 54. Kd5 {[%clk 0:00:05.1]} 54... Nb4+ {[%clk 0:00:02.1]} 55.
Kd6 {[%clk 0:00:03.6]} 55... f5 {[%clk 0:00:02.1]} 56. c6 {[%clk 0:00:02.6]}
56... Nxc6 {[%clk 0:00:02.2]} 57. Kxc6 {[%clk 0:00:03.5]} 57... fxg4 {[%clk
0:00:02.8]} 58. Kb6 {[%clk 0:00:03.2]} 58... g3 {[%clk 0:00:03.7]} 59. Kxa6
{[%clk 0:00:03.5]} 59... g2 {[%clk 0:00:04.6]} 60. Kxb5 {[%clk 0:00:04]} 60...
g1=Q {[%clk 0:00:03.1]} 61. Ka6 {[%clk 0:00:04.2]} 61... Qc5 {[%clk 0:00:03]}
62. b4 {[%clk 0:00:05.1]} 62... Qxb4 {[%clk 0:00:03]} 63. Ka7 {[%clk 0:00:03.2]}
63... Ke7 {[%clk 0:00:03.9]} 64. Ka6 {[%clk 0:00:01.3]} 64... Kd7 {[%clk
0:00:04.8]} 65. Ka7 {[%clk 0:00:01.6]} 65... Kc7 {[%clk 0:00:05.7]} 66. Ka6
{[%clk 0:00:02.1]} 66... Qb7+ {[%clk 0:00:06.6]} 67. Ka5 {[%clk 0:00:01.5]}
67... Qb3 {[%clk 0:00:06.8]} 0-1

[Event "*** Titled Tuesday Blitz"]
[Site "Chess.com"]
[Date "2020.04.07"]
[Round "7"]
[White "arctic_t00"]
[Black "Malev212"]
[Result "1/2-1/2"]
[WhiteElo "2409"]
[BlackElo "2561"]
[TimeControl "180+1"]
[EndTime "14:20:58 PDT"]
[Termination "Game drawn - insufficient material"]

1. d4 {[%clk 0:03:00.9]} 1... Nf6 {[%clk 0:02:58.3]} 2. Nf3 {[%clk 0:03:00.7]}
2... e6 {[%clk 0:02:58.1]} 3. e3 {[%clk 0:03:00.9]} 3... b6 {[%clk 0:02:57.7]}
4. Bd3 {[%clk 0:03:00.4]} 4... Bb7 {[%clk 0:02:58.1]} 5. O-O {[%clk 0:03:00.5]}
5... d5 {[%clk 0:02:57.7]} 6. b3 {[%clk 0:03:00.3]} 6... Bd6 {[%clk 0:02:57.4]}
7. c4 {[%clk 0:02:59.9]} 7... O-O {[%clk 0:02:56.3]} 8. cxd5 {[%clk 0:03:00.1]}
8... exd5 {[%clk 0:02:55.3]} 9. Ba3 {[%clk 0:02:59.8]} 9... c5 {[%clk
0:02:54.2]} 10. Nc3 {[%clk 0:02:59.2]} 10... Nbd7 {[%clk 0:02:52.7]} 11. Rc1
{[%clk 0:02:57.5]} 11... a6 {[%clk 0:02:52.4]} 12. Bf5 {[%clk 0:02:50.3]} 12...
Re8 {[%clk 0:02:26.7]} 13. Na4 {[%clk 0:02:25.7]} 13... Rc8 {[%clk 0:02:15.3]}
14. Re1 {[%clk 0:01:35.6]} 14... g6 {[%clk 0:02:13.9]} 15. Bh3 {[%clk
0:01:34.4]} 15... Rc7 {[%clk 0:01:43.9]} 16. Qe2 {[%clk 0:01:28.1]} 16... Bf8
{[%clk 0:01:41.6]} 17. dxc5 {[%clk 0:01:07.4]} 17... bxc5 {[%clk 0:01:40.1]} 18.
Qd2 {[%clk 0:01:05.5]} 18... Ne4 {[%clk 0:01:29.1]} 19. Qa5 {[%clk 0:01:04.4]}
19... f5 {[%clk 0:01:28.8]} 20. g3 {[%clk 0:00:50.4]} 20... Rc8 {[%clk
0:01:05.5]} 21. Qxd8 {[%clk 0:00:49.3]} 21... Rexd8 {[%clk 0:01:05.7]} 22. Red1
{[%clk 0:00:48.6]} 22... Bg7 {[%clk 0:00:59.8]} 23. Bb2 {[%clk 0:00:43.6]} 23...
Ndf6 {[%clk 0:00:56.3]} 24. Ne5 {[%clk 0:00:39.1]} 24... d4 {[%clk 0:00:47.2]}
25. Nb6 {[%clk 0:00:34.2]} 25... Rb8 {[%clk 0:00:41.9]} 26. exd4 {[%clk
0:00:33.6]} 26... Ng5 {[%clk 0:00:33.5]} 27. Bf1 {[%clk 0:00:26.1]} 27... Ng4
{[%clk 0:00:32]} 28. Nbd7 {[%clk 0:00:07.9]} 28... Rxd7 {[%clk 0:00:28.3]} 29.
Nxd7 {[%clk 0:00:06.9]} 29... Nf3+ {[%clk 0:00:27.7]} 30. Kg2 {[%clk 0:00:06.7]}
30... Rd8 {[%clk 0:00:24.5]} 31. d5 {[%clk 0:00:05.9]} 31... Bxb2 {[%clk
0:00:19.1]} 32. Rxc5 {[%clk 0:00:06.1]} 32... Rxd7 {[%clk 0:00:17.5]} 33. Kxf3
{[%clk 0:00:06.5]} 33... Ba3 {[%clk 0:00:16.4]} 34. Ra5 {[%clk 0:00:05.3]} 34...
Bb4 {[%clk 0:00:14.5]} 35. Ra4 {[%clk 0:00:05.5]} 35... Rxd5 {[%clk 0:00:13.6]}
36. Rxd5 {[%clk 0:00:05.3]} 36... Bxd5+ {[%clk 0:00:13.1]} 37. Ke2 {[%clk
0:00:06.2]} 37... a5 {[%clk 0:00:13]} 38. a3 {[%clk 0:00:05.5]} 38... Bxb3
{[%clk 0:00:12]} 39. Rxb4 {[%clk 0:00:04.9]} 39... axb4 {[%clk 0:00:11.9]} 40.
axb4 {[%clk 0:00:05.8]} 40... Bc4+ {[%clk 0:00:12]} 41. Ke1 {[%clk 0:00:06.1]}
41... Bxf1 {[%clk 0:00:11.6]} 42. Kxf1 {[%clk 0:00:07]} 42... Kf7 {[%clk
0:00:11.8]} 43. b5 {[%clk 0:00:05.8]} 43... Ke6 {[%clk 0:00:11.7]} 44. Kg2
{[%clk 0:00:05.1]} 44... Kd6 {[%clk 0:00:12.6]} 45. Kf3 {[%clk 0:00:05.3]} 45...
g5 {[%clk 0:00:11.6]} 46. h4 {[%clk 0:00:05.1]} 46... h6 {[%clk 0:00:10.7]} 47.
hxg5 {[%clk 0:00:05.3]} 47... hxg5 {[%clk 0:00:10.2]} 48. Ke2 {[%clk 0:00:05.2]}
48... Kc5 {[%clk 0:00:10]} 49. f3 {[%clk 0:00:05.4]} 49... Nf6 {[%clk
0:00:08.8]} 50. Ke3 {[%clk 0:00:05.9]} 50... Nd7 {[%clk 0:00:06.9]} 51. g4
{[%clk 0:00:05]} 51... f4+ {[%clk 0:00:04.8]} 52. Ke4 {[%clk 0:00:05.4]} 52...
Kc4 {[%clk 0:00:03.9]} 53. Kf5 {[%clk 0:00:06.3]} 53... Kd3 {[%clk 0:00:03.8]}
54. Kxg5 {[%clk 0:00:06.3]} 54... Ke3 {[%clk 0:00:04.7]} 55. Kf5 {[%clk
0:00:06.6]} 55... Kxf3 {[%clk 0:00:05.6]} 56. g5 {[%clk 0:00:07.5]} 56... Ke3
{[%clk 0:00:06.5]} 57. g6 {[%clk 0:00:08.4]} 57... f3 {[%clk 0:00:07.4]} 58. g7
{[%clk 0:00:08.9]} 58... f2 {[%clk 0:00:08.3]} 59. g8=Q {[%clk 0:00:08.4]} 59...
f1=Q+ {[%clk 0:00:09.2]} 60. Kg6 {[%clk 0:00:08.6]} 60... Ne5+ {[%clk
0:00:08.2]} 61. Kh7 {[%clk 0:00:08.1]} 61... Qh3+ {[%clk 0:00:07.5]} 62. Kg7
{[%clk 0:00:07.5]} 62... Qg4+ {[%clk 0:00:07.2]} 63. Kf8 {[%clk 0:00:07.5]}
63... Nd7+ {[%clk 0:00:06.3]} 64. Kf7 {[%clk 0:00:07.9]} 64... Qc4+ {[%clk
0:00:05.5]} 65. Kg7 {[%clk 0:00:08.2]} 65... Qg4+ {[%clk 0:00:05.3]} 66. Kf7
{[%clk 0:00:08.5]} 66... Qf5+ {[%clk 0:00:05.6]} 67. Kg7 {[%clk 0:00:08.4]}
67... Qf6+ {[%clk 0:00:04.7]} 68. Kh7 {[%clk 0:00:09.1]} 68... Ne5 {[%clk
0:00:04.6]} 69. Qg3+ {[%clk 0:00:08.2]} 69... Ke4 {[%clk 0:00:03.9]} 70. Qg2+
{[%clk 0:00:07.9]} 70... Kd4 {[%clk 0:00:03.4]} 71. Qd2+ {[%clk 0:00:07.9]}
71... Kc5 {[%clk 0:00:02.4]} 72. Qc3+ {[%clk 0:00:07.5]} 72... Kd6 {[%clk
0:00:03.3]} 73. Qd4+ {[%clk 0:00:07.5]} 73... Ke6 {[%clk 0:00:03.3]} 74. Qb6+
{[%clk 0:00:07.6]} 74... Ke7 {[%clk 0:00:04.1]} 75. Qxf6+ {[%clk 0:00:07.5]}
75... Kxf6 {[%clk 0:00:05]} 76. b6 {[%clk 0:00:07.9]} 76... Nd7 {[%clk
0:00:05.9]} 77. b7 {[%clk 0:00:08.8]} 77... Nb8 {[%clk 0:00:06.5]} 78. Kh6
{[%clk 0:00:09.1]} 78... Ke6 {[%clk 0:00:07.4]} 79. Kh5 {[%clk 0:00:10]} 79...
Kd7 {[%clk 0:00:08.3]} 80. Kg4 {[%clk 0:00:10.9]} 80... Kc7 {[%clk 0:00:09.2]}
81. Kf4 {[%clk 0:00:11.8]} 81... Kxb7 {[%clk 0:00:10.1]} 1/2-1/2

[Event "*** Titled Tuesday Blitz"]
[Site "Chess.com"]
[Date "2020.04.07"]
[Round "7"]
[White "gvanna"]
[Black "Megagigahiper3345"]
[Result "0-1"]
[WhiteElo "2439"]
[BlackElo "2316"]
[TimeControl "180+1"]
[EndTime "14:21:00 PDT"]
[Termination "Megagigahiper3345 won on time"]

1. e4 {[%clk 0:03:00.7]} 1... c5 {[%clk 0:02:57.7]} 2. Nf3 {[%clk 0:03:01.1]}
2... d6 {[%clk 0:02:57.8]} 3. d4 {[%clk 0:03:01.1]} 3... cxd4 {[%clk 0:02:58.7]}
4. Nxd4 {[%clk 0:03:01.6]} 4... Nf6 {[%clk 0:02:58.3]} 5. Nc3 {[%clk 0:03:02]}
5... a6 {[%clk 0:02:58.2]} 6. Bg5 {[%clk 0:03:02.4]} 6... Nbd7 {[%clk
0:02:57.1]} 7. Qe2 {[%clk 0:03:02.4]} 7... e6 {[%clk 0:02:55.4]} 8. O-O-O {[%clk
0:03:01.9]} 8... Qc7 {[%clk 0:02:55.9]} 9. f4 {[%clk 0:03:02]} 9... h6 {[%clk
0:02:55.4]} 10. Bh4 {[%clk 0:03:01.9]} 10... b5 {[%clk 0:02:53.9]} 11. g4 {[%clk
0:03:01.2]} 11... Bb7 {[%clk 0:02:53.6]} 12. Bg2 {[%clk 0:03:01.4]} 12... Be7
{[%clk 0:02:36.4]} 13. Bxf6 {[%clk 0:02:59.6]} 13... Bxf6 {[%clk 0:02:15.4]} 14.
e5 {[%clk 0:02:48.1]} 14... dxe5 {[%clk 0:01:57.5]} 15. fxe5 {[%clk 0:02:32.1]}
15... Bxe5 {[%clk 0:01:45.2]} 16. Bxb7 {[%clk 0:02:14.4]} 16... Qxb7 {[%clk
0:01:41.5]} 17. Kb1 {[%clk 0:01:53.5]} 17... O-O {[%clk 0:01:37.2]} 18. h4
{[%clk 0:01:48.2]} 18... Bxd4 {[%clk 0:01:33.7]} 19. Ne4 {[%clk 0:01:32.4]}
19... Be5 {[%clk 0:01:27.2]} 20. g5 {[%clk 0:01:30.7]} 20... Rad8 {[%clk
0:00:55.2]} 21. gxh6 {[%clk 0:01:25.9]} 21... Nf6 {[%clk 0:00:51.6]} 22. hxg7
{[%clk 0:01:18]} 22... Rfe8 {[%clk 0:00:35.5]} 23. Nc5 {[%clk 0:01:06]} 23...
Qc6 {[%clk 0:00:32.5]} 24. Nd3 {[%clk 0:01:06.2]} 24... Bd4 {[%clk 0:00:19]} 25.
h5 {[%clk 0:01:03.9]} 25... Nh7 {[%clk 0:00:14.3]} 26. h6 {[%clk 0:01:00.8]}
26... Rd6 {[%clk 0:00:12.9]} 27. Nf4 {[%clk 0:00:59.9]} 27... Red8 {[%clk
0:00:11.8]} 28. Rhf1 {[%clk 0:00:56.1]} 28... Be5 {[%clk 0:00:07.7]} 29. Nd3
{[%clk 0:00:54.6]} 29... Bf6 {[%clk 0:00:07.1]} 30. Rde1 {[%clk 0:00:49.8]}
30... Rc8 {[%clk 0:00:06.1]} 31. Rf2 {[%clk 0:00:47.6]} 31... Bg5 {[%clk
0:00:05.5]} 32. Rh2 {[%clk 0:00:45.9]} 32... Rd5 {[%clk 0:00:02.3]} 33. Rf1
{[%clk 0:00:43.7]} 33... Qc7 {[%clk 0:00:02.9]} 34. c3 {[%clk 0:00:41.2]} 34...
Rd7 {[%clk 0:00:03.1]} 35. Ne5 {[%clk 0:00:41]} 35... Re7 {[%clk 0:00:03.2]} 36.
Rg2 {[%clk 0:00:40.7]} 36... Bf6 {[%clk 0:00:03.6]} 37. Ng4 {[%clk 0:00:40.2]}
37... Bg5 {[%clk 0:00:03.6]} 38. Ne5 {[%clk 0:00:37.2]} 38... f6 {[%clk
0:00:02.6]} 39. Ng6 {[%clk 0:00:36.1]} 39... Ree8 {[%clk 0:00:03.1]} 40. Re1
{[%clk 0:00:34.7]} 40... Qc6 {[%clk 0:00:03.7]} 41. Rgg1 {[%clk 0:00:30.3]}
41... b4 {[%clk 0:00:04.2]} 42. cxb4 {[%clk 0:00:29.7]} 42... Qd5 {[%clk
0:00:04.7]} 43. Rgf1 {[%clk 0:00:10.2]} 43... Rc7 {[%clk 0:00:03.2]} 44. a3
{[%clk 0:00:10.4]} 44... Rec8 {[%clk 0:00:03.4]} 45. Nf4 {[%clk 0:00:09.1]}
45... Bxf4 {[%clk 0:00:03.1]} 46. Rxf4 {[%clk 0:00:09.8]} 46... e5 {[%clk
0:00:03.8]} 47. Rff1 {[%clk 0:00:08.8]} 47... Qf7 {[%clk 0:00:04.4]} 48. Rf2
{[%clk 0:00:09]} 48... a5 {[%clk 0:00:04.9]} 49. b5 {[%clk 0:00:09.3]} 49...
Qg6+ {[%clk 0:00:05.3]} 50. Ka2 {[%clk 0:00:09.3]} 50... Rc2 {[%clk 0:00:05.9]}
51. Qe3 {[%clk 0:00:08.9]} 51... Qf7+ {[%clk 0:00:06.6]} 52. Ka1 {[%clk
0:00:08.8]} 52... Rxf2 {[%clk 0:00:07.3]} 53. Qxf2 {[%clk 0:00:09]} 53... Qg6
{[%clk 0:00:07.9]} 54. Qd2 {[%clk 0:00:09.4]} 54... Ng5 {[%clk 0:00:06.6]} 55.
Rg1 {[%clk 0:00:09.4]} 55... Qxh6 {[%clk 0:00:06.5]} 56. Qxa5 {[%clk 0:00:09.2]}
56... Qxg7 {[%clk 0:00:06.4]} 57. Qa6 {[%clk 0:00:09.8]} 57... Re8 {[%clk
0:00:03.6]} 58. Rf1 {[%clk 0:00:10.3]} 58... e4 {[%clk 0:00:04]} 59. b6 {[%clk
0:00:11]} 59... e3 {[%clk 0:00:04.2]} 60. b7 {[%clk 0:00:11.5]} 60... e2 {[%clk
0:00:04.1]} 61. Re1 {[%clk 0:00:12.1]} 61... Qc7 {[%clk 0:00:02.8]} 62. Rxe2
{[%clk 0:00:11.9]} 62... Rxe2 {[%clk 0:00:02.5]} 63. Qxe2 {[%clk 0:00:12.6]}
63... Qxb7 {[%clk 0:00:02.3]} 64. Qe8+ {[%clk 0:00:13]} 64... Kg7 {[%clk
0:00:02.5]} 65. Qe3 {[%clk 0:00:12.4]} 65... Qf7 {[%clk 0:00:03.4]} 66. Qf4
{[%clk 0:00:12.5]} 66... Ne6 {[%clk 0:00:03.6]} 67. Qg4+ {[%clk 0:00:12.7]}
67... Ng5 {[%clk 0:00:04.5]} 68. Qf5 {[%clk 0:00:13.1]} 68... Qg6 {[%clk
0:00:04.8]} 69. Qd7+ {[%clk 0:00:13.1]} 69... Kh6 {[%clk 0:00:05.7]} 70. a4
{[%clk 0:00:13.3]} 70... f5 {[%clk 0:00:06.4]} 71. Qd4 {[%clk 0:00:10.9]} 71...
Qe6 {[%clk 0:00:05.3]} 72. Qh4+ {[%clk 0:00:10.8]} 72... Kg6 {[%clk 0:00:05.9]}
73. a5 {[%clk 0:00:10.6]} 73... Qe5 {[%clk 0:00:05.6]} 74. Qa4 {[%clk
0:00:10.1]} 74... f4 {[%clk 0:00:05.4]} 75. a6 {[%clk 0:00:09.2]} 75... f3
{[%clk 0:00:05.9]} 76. a7 {[%clk 0:00:07.6]} 76... f2 {[%clk 0:00:06.5]} 77.
Qa6+ {[%clk 0:00:08]} 77... Qf6 {[%clk 0:00:05.4]} 78. a8=Q {[%clk 0:00:06.3]}
78... f1=Q+ {[%clk 0:00:05.8]} 79. Ka2 {[%clk 0:00:06.8]} 79... Q1xa6+ {[%clk
0:00:05.6]} 80. Qxa6 {[%clk 0:00:05.6]} 80... Qxa6+ {[%clk 0:00:06.5]} 0-1

[Event "*** Titled Tuesday Blitz"]
[Site "Chess.com"]
[Date "2020.04.07"]
[Round "7"]
[White "SoltaniciR"]
[Black "Euwe1234"]
[Result "0-1"]
[WhiteElo "2603"]
[BlackElo "2173"]
[TimeControl "180+1"]
[EndTime "14:21:05 PDT"]
[Termination "Euwe1234 won by resignation"]

1. e4 {[%clk 0:03:00.9]} 1... c5 {[%clk 0:02:58.9]} 2. Nf3 {[%clk 0:03:00.4]}
2... Nc6 {[%clk 0:02:58.4]} 3. Nc3 {[%clk 0:02:59.9]} 3... Nf6 {[%clk
0:02:56.6]} 4. d4 {[%clk 0:02:59]} 4... cxd4 {[%clk 0:02:56.5]} 5. Nxd4 {[%clk
0:02:59.9]} 5... e5 {[%clk 0:02:56.6]} 6. Ndb5 {[%clk 0:03:00.3]} 6... d6 {[%clk
0:02:56.9]} 7. Bg5 {[%clk 0:03:00.7]} 7... a6 {[%clk 0:02:56.7]} 8. Na3 {[%clk
0:03:01.2]} 8... b5 {[%clk 0:02:56.9]} 9. Nd5 {[%clk 0:03:01.7]} 9... Be7 {[%clk
0:02:56.7]} 10. Bxf6 {[%clk 0:03:02.1]} 10... Bxf6 {[%clk 0:02:57.1]} 11. c4
{[%clk 0:03:02.7]} 11... b4 {[%clk 0:02:56.7]} 12. Nc2 {[%clk 0:03:03.2]} 12...
Bg5 {[%clk 0:02:56.8]} 13. Be2 {[%clk 0:03:03.6]} 13... O-O {[%clk 0:02:56.4]}
14. Qd3 {[%clk 0:03:04]} 14... a5 {[%clk 0:02:55.9]} 15. O-O {[%clk 0:03:03.9]}
15... Kh8 {[%clk 0:02:49.3]} 16. b3 {[%clk 0:03:03.3]} 16... f5 {[%clk
0:02:49.3]} 17. Bf3 {[%clk 0:03:03.3]} 17... f4 {[%clk 0:02:48.3]} 18. Qe2
{[%clk 0:03:01.8]} 18... Ne7 {[%clk 0:02:34.8]} 19. Nxe7 {[%clk 0:02:47.3]}
19... Qxe7 {[%clk 0:02:34]} 20. a3 {[%clk 0:02:47.3]} 20... bxa3 {[%clk
0:02:32.6]} 21. Rxa3 {[%clk 0:02:42.2]} 21... Rb8 {[%clk 0:02:31.8]} 22. Rd1
{[%clk 0:02:40.3]} 22... Qc7 {[%clk 0:02:26.7]} 23. h3 {[%clk 0:02:02.4]} 23...
Be7 {[%clk 0:02:18.1]} 24. Rd5 {[%clk 0:01:43.8]} 24... a4 {[%clk 0:02:08.1]}
25. Rb5 {[%clk 0:01:25.8]} 25... axb3 {[%clk 0:01:16.7]} 26. Raxb3 {[%clk
0:01:23.3]} 26... Be6 {[%clk 0:01:16]} 27. Na3 {[%clk 0:00:31.3]} 27... Rxb5
{[%clk 0:01:03.8]} 28. Rxb5 {[%clk 0:00:26.6]} 28... Ra8 {[%clk 0:01:03.4]} 29.
Rb3 {[%clk 0:00:18.2]} 29... g6 {[%clk 0:00:57.6]} 30. Bg4 {[%clk 0:00:17.5]}
30... Bxg4 {[%clk 0:00:56.2]} 31. Qxg4 {[%clk 0:00:14.9]} 31... d5 {[%clk
0:00:55.7]} 32. Nb5 {[%clk 0:00:10.7]} 32... Qxc4 {[%clk 0:00:55.3]} 33. Qe6
{[%clk 0:00:10.4]} 33... Qxb3 {[%clk 0:00:43.4]} 34. Qxe5+ {[%clk 0:00:10.3]}
34... Kg8 {[%clk 0:00:42.7]} 35. Qxe7 {[%clk 0:00:07]} 35... Qxb5 {[%clk
0:00:41]} 36. Qe6+ {[%clk 0:00:07.1]} 36... Kf8 {[%clk 0:00:28.2]} 37. Qf6+
{[%clk 0:00:07.2]} 37... Ke8 {[%clk 0:00:28.1]} 38. Qh8+ {[%clk 0:00:07.1]}
38... Kd7 {[%clk 0:00:20.4]} 39. Qxa8 {[%clk 0:00:08]} 39... Qb1+ {[%clk
0:00:20.3]} 40. Kh2 {[%clk 0:00:07.8]} 40... Qxe4 {[%clk 0:00:20.3]} 41. Qb7+
{[%clk 0:00:07.4]} 41... Ke6 {[%clk 0:00:20.8]} 42. Qxh7 {[%clk 0:00:04.9]}
42... d4 {[%clk 0:00:21]} 43. Qg8+ {[%clk 0:00:04.6]} 43... Ke5 {[%clk
0:00:20.3]} 44. Qe8+ {[%clk 0:00:04]} 44... Kf5 {[%clk 0:00:20.2]} 45. Qf7+
{[%clk 0:00:03.2]} 45... Kg5 {[%clk 0:00:20.4]} 46. Qc4 {[%clk 0:00:02.3]} 46...
Qe5 {[%clk 0:00:19.5]} 47. f3 {[%clk 0:00:02.3]} 47... Kf5 {[%clk 0:00:19.8]}
48. Qd3+ {[%clk 0:00:02.3]} 48... Kf6 {[%clk 0:00:18.9]} 49. Qc4 {[%clk
0:00:03.2]} 49... Kg5 {[%clk 0:00:19.5]} 50. Qc6 {[%clk 0:00:03.2]} 50... Qe3
{[%clk 0:00:18.5]} 51. Qd5+ {[%clk 0:00:03]} 51... Kf6 {[%clk 0:00:18.2]} 52.
Qd6+ {[%clk 0:00:02.9]} 52... Kf5 {[%clk 0:00:18.5]} 53. Qd5+ {[%clk 0:00:02.9]}
53... Qe5 {[%clk 0:00:18.4]} 54. Qd7+ {[%clk 0:00:03.3]} 54... Kg5 {[%clk
0:00:17.9]} 55. Qd8+ {[%clk 0:00:04]} 55... Qf6 {[%clk 0:00:17.2]} 56. Qd5+
{[%clk 0:00:03.7]} 56... Kh6 {[%clk 0:00:17.4]} 57. Qd7 {[%clk 0:00:02.8]} 57...
Qe5 {[%clk 0:00:16.3]} 58. Qd8 {[%clk 0:00:02.8]} 58... Kg7 {[%clk 0:00:14.8]}
59. Qd7+ {[%clk 0:00:03.1]} 59... Kf6 {[%clk 0:00:15]} 60. Qd8+ {[%clk
0:00:03.5]} 60... Ke6 {[%clk 0:00:15.2]} 61. Qe8+ {[%clk 0:00:03.6]} 61... Kd6
{[%clk 0:00:14.4]} 62. Qxg6+ {[%clk 0:00:03.8]} 62... Kd5 {[%clk 0:00:14.2]} 63.
Qf7+ {[%clk 0:00:03.4]} 63... Kc5 {[%clk 0:00:14.5]} 64. Qf8+ {[%clk 0:00:03.8]}
64... Kc4 {[%clk 0:00:14.7]} 65. Qc8+ {[%clk 0:00:04.2]} 65... Kd3 {[%clk
0:00:14.6]} 66. Qa6+ {[%clk 0:00:04.2]} 66... Ke3 {[%clk 0:00:14.9]} 67. Qa7
{[%clk 0:00:03.2]} 67... Ke2 {[%clk 0:00:14.4]} 68. Qa2+ {[%clk 0:00:02.5]}
68... Ke3 {[%clk 0:00:14.6]} 69. Qa7 {[%clk 0:00:02]} 69... Qg5 {[%clk
0:00:12.9]} 70. Qb6 {[%clk 0:00:01.2]} 70... Qg3+ {[%clk 0:00:12.3]} 71. Kh1
{[%clk 0:00:02.1]} 71... Qe1+ {[%clk 0:00:10.7]} 72. Kh2 {[%clk 0:00:02.6]}
72... Qc3 {[%clk 0:00:11.4]} 73. Qe6+ {[%clk 0:00:01.8]} 73... Kf2 {[%clk
0:00:11.5]} 74. Qf5 {[%clk 0:00:02.7]} 74... d3 {[%clk 0:00:11.7]} 75. Qxf4
{[%clk 0:00:03]} 75... d2 {[%clk 0:00:12]} 76. Qg3+ {[%clk 0:00:03.9]} 76... Ke2
{[%clk 0:00:12.5]} 77. Qg4 {[%clk 0:00:03.8]} 77... d1=Q {[%clk 0:00:12]} 78.
f4+ {[%clk 0:00:04.7]} 78... Kd2 {[%clk 0:00:12.2]} 79. Qd7+ {[%clk 0:00:04.7]}
79... Qd3 {[%clk 0:00:12.4]} 80. Qe7 {[%clk 0:00:04.8]} 80... Q1e2 {[%clk
0:00:11.6]} 81. Qg5 {[%clk 0:00:05.1]} 81... Qee3 {[%clk 0:00:10.6]} 82. Qg4
{[%clk 0:00:04.7]} 82... Qdd4 {[%clk 0:00:10.6]} 83. f5 {[%clk 0:00:03.3]} 83...
Qxg4 {[%clk 0:00:08.6]} 84. hxg4 {[%clk 0:00:04.2]} 84... Kd3 {[%clk 0:00:08.9]}
0-1